[Event "Late-Titled-Tuesday-Blitz-May-14-2024"]
[Site "Chess.com"]
[Date "2024.05.14"]
[Round "4"]
[White "moro182"]
[Black "secretworker2027"]
[Result "1-0"]
[WhiteElo "2900"]
[BlackElo "2633"]
[TimeControl "180+1"]
[EndTime "14:36:35 PDT"]
[Termination "moro182 won by resignation"]

1. d4 {[%clk 0:03:00.9]} 1... Nf6 {[%clk 0:02:58.9]} 2. Bf4 {[%clk 0:03:01.1]}
2... d5 {[%clk 0:02:56.9]} 3. e3 {[%clk 0:03:01.1]} 3... e6 {[%clk 0:02:56.6]}
4. Nf3 {[%clk 0:03:00.7]} 4... Be7 {[%clk 0:02:53.4]} 5. Nbd2 {[%clk 0:03:00.6]}
5... c5 {[%clk 0:02:53]} 6. c3 {[%clk 0:03:00]} 6... Nc6 {[%clk 0:02:53]} 7. Bd3
{[%clk 0:02:59.8]} 7... O-O {[%clk 0:02:44.8]} 8. h3 {[%clk 0:02:59.9]} 8... Bd6
{[%clk 0:02:44.2]} 9. dxc5 {[%clk 0:02:58.2]} 9... Bxc5 {[%clk 0:02:39.6]} 10.
O-O {[%clk 0:02:58.1]} 10... Bd6 {[%clk 0:02:39.3]} 11. Bxd6 {[%clk 0:02:58]}
11... Qxd6 {[%clk 0:02:39.2]} 12. e4 {[%clk 0:02:58.9]} 12... Rd8 {[%clk
0:02:24.2]} 13. Qe2 {[%clk 0:02:55.2]} 13... e5 {[%clk 0:02:15.7]} 14. Rad1
{[%clk 0:02:49.6]} 14... Qe7 {[%clk 0:02:13.1]} 15. Rfe1 {[%clk 0:02:43.3]}
15... d4 {[%clk 0:02:05.9]} 16. cxd4 {[%clk 0:02:44.2]} 16... Nxd4 {[%clk
0:02:05.8]} 17. Nxd4 {[%clk 0:02:44.3]} 17... Rxd4 {[%clk 0:02:06.4]} 18. Nf3
{[%clk 0:02:44.8]} 18... Rd8 {[%clk 0:02:06]} 19. Bc4 {[%clk 0:02:44.8]} 19...
Be6 {[%clk 0:01:57.1]} 20. Nxe5 {[%clk 0:02:42.4]} 20... Bxc4 {[%clk 0:01:55.9]}
21. Nxc4 {[%clk 0:02:42.4]} 21... Rxd1 {[%clk 0:01:54.2]} 22. Qxd1 {[%clk
0:02:28.8]} 22... Rd8 {[%clk 0:01:52.7]} 23. Qb3 {[%clk 0:02:27.5]} 23... b6
{[%clk 0:01:48.4]} 24. e5 {[%clk 0:02:24]} 24... Nd5 {[%clk 0:01:47.3]} 25. Rd1
{[%clk 0:02:23.9]} 25... Nf4 {[%clk 0:01:45.6]} 26. Rxd8+ {[%clk 0:02:20.2]}
26... Qxd8 {[%clk 0:01:45.7]} 27. Nd6 {[%clk 0:02:20.8]} 27... Qe7 {[%clk
0:01:42.8]} 28. Qc4 {[%clk 0:02:20.5]} 28... Ng6 {[%clk 0:01:40.6]} 29. f4
{[%clk 0:02:13.9]} 29... h5 {[%clk 0:01:38.9]} 30. Qc8+ {[%clk 0:02:11.3]} 30...
Kh7 {[%clk 0:01:38.9]} 31. Qf5 {[%clk 0:02:11.6]} 31... Qh4 {[%clk 0:01:36.1]}
32. Nxf7 {[%clk 0:02:04.5]} 32... Qxf4 {[%clk 0:01:33.6]} 33. Ng5+ {[%clk
0:02:02.3]} 33... Kh6 {[%clk 0:01:32.7]} 34. Nf7+ {[%clk 0:01:53.8]} 34... Kh7
{[%clk 0:01:32.7]} 35. Qxh5+ {[%clk 0:01:46.6]} 35... Kg8 {[%clk 0:01:32.3]} 36.
Qxg6 {[%clk 0:01:45.5]} 36... Qxf7 {[%clk 0:01:32.5]} 37. Qxf7+ {[%clk
0:01:44.7]} 37... Kxf7 {[%clk 0:01:33.4]} 38. Kf2 {[%clk 0:01:45.1]} 38... Ke6
{[%clk 0:01:34.3]} 39. Ke3 {[%clk 0:01:43.7]} 39... Kxe5 {[%clk 0:01:35.2]} 40.
h4 {[%clk 0:01:44.1]} 1-0

[Event "Late-Titled-Tuesday-Blitz-May-14-2024"]
[Site "Chess.com"]
[Date "2024.05.14"]
[Round "4"]
[White "Eloist"]
[Black "miraitrunks"]
[Result "1-0"]
[WhiteElo "2428"]
[BlackElo "2246"]
[TimeControl "180+1"]
[EndTime "14:36:36 PDT"]
[Termination "Eloist won by resignation"]

1. e4 {[%clk 0:03:00.1]} 1... c5 {[%clk 0:02:59.9]} 2. Nf3 {[%clk 0:02:58.2]}
2... Nc6 {[%clk 0:03:00.5]} 3. Bb5 {[%clk 0:02:58.2]} 3... d6 {[%clk 0:02:58.6]}
4. O-O {[%clk 0:02:57.3]} 4... Bd7 {[%clk 0:02:58.9]} 5. Re1 {[%clk 0:02:57.4]}
5... a6 {[%clk 0:02:59.5]} 6. Bxc6 {[%clk 0:02:57.5]} 6... Bxc6 {[%clk
0:02:59.6]} 7. d4 {[%clk 0:02:58.4]} 7... cxd4 {[%clk 0:02:59.1]} 8. Nxd4 {[%clk
0:02:59.3]} 8... g6 {[%clk 0:02:58.9]} 9. Nxc6 {[%clk 0:02:55.7]} 9... bxc6
{[%clk 0:02:59]} 10. c4 {[%clk 0:02:54.3]} 10... Bg7 {[%clk 0:02:58.9]} 11. Nc3
{[%clk 0:02:53.7]} 11... Nf6 {[%clk 0:02:58.8]} 12. Be3 {[%clk 0:02:43.8]} 12...
O-O {[%clk 0:02:57.7]} 13. f3 {[%clk 0:02:38.2]} 13... Rb8 {[%clk 0:02:56.5]}
14. Qd2 {[%clk 0:02:35.2]} 14... Re8 {[%clk 0:02:50.9]} 15. Rad1 {[%clk
0:02:30.1]} 15... Qa5 {[%clk 0:02:50.7]} 16. b3 {[%clk 0:02:20.5]} 16... Red8
{[%clk 0:02:29.1]} 17. Bd4 {[%clk 0:02:17]} 17... e5 {[%clk 0:02:11.3]} 18. Be3
{[%clk 0:02:12.8]} 18... d5 {[%clk 0:02:11.5]} 19. Nxd5 {[%clk 0:02:04.8]} 19...
Qxd2 {[%clk 0:01:54.8]} 20. Nxf6+ {[%clk 0:02:04.7]} 20... Bxf6 {[%clk
0:01:54.8]} 21. Rxd2 {[%clk 0:02:05.2]} 21... Rxd2 {[%clk 0:01:51.7]} 22. Bxd2
{[%clk 0:02:06.1]} 22... Rd8 {[%clk 0:01:52]} 23. Re2 {[%clk 0:01:59.8]} 23...
Rd3 {[%clk 0:01:50.7]} 24. Kf2 {[%clk 0:01:57.4]} 24... Be7 {[%clk 0:01:50.3]}
25. Ke1 {[%clk 0:01:48.4]} 25... Bc5 {[%clk 0:01:46.9]} 26. Kd1 {[%clk 0:01:47]}
26... Rd7 {[%clk 0:01:36.9]} 27. Kc2 {[%clk 0:01:46.3]} 27... Bg1 {[%clk
0:01:34.4]} 28. h3 {[%clk 0:01:45.5]} 28... c5 {[%clk 0:01:34.6]} 29. Be3 {[%clk
0:01:42.1]} 29... Bxe3 {[%clk 0:01:30.9]} 30. Rxe3 {[%clk 0:01:43]} 30... Kf8
{[%clk 0:01:29.9]} 31. Rd3 {[%clk 0:01:42.9]} 31... Rb7 {[%clk 0:01:25.5]} 32.
Rd5 {[%clk 0:01:41.6]} 1-0

[Event "Late-Titled-Tuesday-Blitz-May-14-2024"]
[Site "Chess.com"]
[Date "2024.05.14"]
[Round "4"]
[White "TheWiscoIndian"]
[Black "amylazy"]
[Result "1-0"]
[WhiteElo "2225"]
[BlackElo "2462"]
[TimeControl "180+1"]
[EndTime "14:36:41 PDT"]
[Termination "TheWiscoIndian won by resignation"]

1. Nf3 {[%clk 0:03:00.6]} 1... Nf6 {[%clk 0:02:55.7]} 2. g3 {[%clk 0:02:55.1]}
2... g6 {[%clk 0:02:55.3]} 3. Bg2 {[%clk 0:02:53.3]} 3... Bg7 {[%clk 0:02:54.6]}
4. O-O {[%clk 0:02:53.8]} 4... O-O {[%clk 0:02:53.6]} 5. c4 {[%clk 0:02:53.8]}
5... d5 {[%clk 0:02:53.4]} 6. cxd5 {[%clk 0:02:53.1]} 6... Nxd5 {[%clk
0:02:54.3]} 7. Nc3 {[%clk 0:02:52.9]} 7... Nb6 {[%clk 0:02:54.2]} 8. b3 {[%clk
0:02:50.2]} 8... Nc6 {[%clk 0:02:53.9]} 9. Bb2 {[%clk 0:02:50.4]} 9... Bf5
{[%clk 0:02:53.8]} 10. d3 {[%clk 0:02:49.7]} 10... Qd7 {[%clk 0:02:53.3]} 11.
Re1 {[%clk 0:02:48.8]} 11... e5 {[%clk 0:02:51.8]} 12. Rc1 {[%clk 0:02:47.3]}
12... Rac8 {[%clk 0:02:49.7]} 13. Nd2 {[%clk 0:02:46.8]} 13... Nd4 {[%clk
0:02:49.8]} 14. e3 {[%clk 0:02:41.5]} 14... Nc6 {[%clk 0:02:47.4]} 15. Nde4
{[%clk 0:02:34.5]} 15... Qe7 {[%clk 0:02:42.2]} 16. Nb5 {[%clk 0:02:30.3]} 16...
Rfd8 {[%clk 0:02:40.7]} 17. Ba3 {[%clk 0:02:28.6]} 17... Nb4 {[%clk 0:02:23.5]}
18. Nc5 {[%clk 0:02:18.8]} 18... a5 {[%clk 0:02:21.7]} 19. Nxb7 {[%clk
0:02:06.4]} 19... Rxd3 {[%clk 0:02:00]} 20. Qe2 {[%clk 0:02:05.3]} 20... c6
{[%clk 0:01:54.7]} 21. e4 {[%clk 0:02:02.1]} 21... Qxb7 {[%clk 0:01:46.2]} 22.
exf5 {[%clk 0:02:01.3]} 22... cxb5 {[%clk 0:01:45.5]} 23. Bxb7 {[%clk
0:01:57.8]} 23... Rcd8 {[%clk 0:01:42.4]} 24. Bxb4 {[%clk 0:01:56.2]} 24... axb4
{[%clk 0:01:40.8]} 25. Red1 {[%clk 0:01:55.6]} 25... e4 {[%clk 0:01:39.3]} 26.
Bxe4 {[%clk 0:01:53.9]} 26... Rxd1+ {[%clk 0:01:39.3]} 27. Rxd1 {[%clk
0:01:53.8]} 27... Re8 {[%clk 0:01:40.2]} 28. fxg6 {[%clk 0:01:45.5]} 28... hxg6
{[%clk 0:01:39.3]} 29. Qxb5 {[%clk 0:01:44.3]} 29... Re6 {[%clk 0:01:38.2]} 30.
Bd5 {[%clk 0:01:36.5]} 30... Rf6 {[%clk 0:01:38.1]} 31. Rc1 {[%clk 0:01:33.1]}
31... Bh6 {[%clk 0:01:33.6]} 32. Rc6 {[%clk 0:01:31.8]} 32... Nxd5 {[%clk
0:01:32.7]} 33. Qxd5 {[%clk 0:01:29.6]} 33... Rf5 {[%clk 0:01:32.4]} 34. Qd8+
{[%clk 0:01:26.9]} 1-0

[Event "Late-Titled-Tuesday-Blitz-May-14-2024"]
[Site "Chess.com"]
[Date "2024.05.14"]
[Round "4"]
[White "h4parah5"]
[Black "MarcoRiehle"]
[Result "1-0"]
[WhiteElo "3042"]
[BlackElo "2801"]
[TimeControl "180+1"]
[EndTime "14:36:48 PDT"]
[Termination "h4parah5 won by resignation"]

1. Nf3 {[%clk 0:03:00.9]} 1... c5 {[%clk 0:02:59.2]} 2. e3 {[%clk 0:02:58.9]}
2... Nc6 {[%clk 0:02:58.9]} 3. d4 {[%clk 0:02:58.7]} 3... d5 {[%clk 0:02:59.5]}
4. Nbd2 {[%clk 0:02:54.1]} 4... Bg4 {[%clk 0:02:59.1]} 5. h3 {[%clk 0:02:53.3]}
5... Bxf3 {[%clk 0:02:58.6]} 6. Nxf3 {[%clk 0:02:52.9]} 6... Nf6 {[%clk
0:02:57.3]} 7. Be2 {[%clk 0:02:35.9]} 7... e6 {[%clk 0:02:56.7]} 8. O-O {[%clk
0:02:35.5]} 8... Bd6 {[%clk 0:02:46.9]} 9. dxc5 {[%clk 0:02:35.3]} 9... Bxc5
{[%clk 0:02:45.9]} 10. a3 {[%clk 0:02:36.2]} 10... a5 {[%clk 0:02:44.6]} 11. c4
{[%clk 0:02:34.3]} 11... O-O {[%clk 0:02:43.6]} 12. Bd2 {[%clk 0:02:33.6]} 12...
Ne4 {[%clk 0:02:39.6]} 13. cxd5 {[%clk 0:02:27.1]} 13... Qxd5 {[%clk 0:02:37.7]}
14. Bc1 {[%clk 0:02:26.4]} 14... Qf5 {[%clk 0:02:28.4]} 15. Qc2 {[%clk
0:02:21.5]} 15... Nf6 {[%clk 0:02:21.1]} 16. Bd3 {[%clk 0:01:33.6]} 16... Qh5
{[%clk 0:02:18.7]} 17. b3 {[%clk 0:01:30.7]} 17... Rac8 {[%clk 0:02:14]} 18. Bb2
{[%clk 0:01:27.3]} 18... Bd6 {[%clk 0:02:04.7]} 19. Qe2 {[%clk 0:01:23.9]} 19...
Rfd8 {[%clk 0:02:00.7]} 20. Rfd1 {[%clk 0:01:22.5]} 20... Nd5 {[%clk 0:01:51]}
21. Rac1 {[%clk 0:01:18.7]} 21... h6 {[%clk 0:01:46.9]} 22. Qf1 {[%clk
0:01:11.6]} 22... Ne5 {[%clk 0:01:20.2]} 23. Bxe5 {[%clk 0:01:09.1]} 23... Bxe5
{[%clk 0:01:21.1]} 24. Rxc8 {[%clk 0:01:06.6]} 24... Rxc8 {[%clk 0:01:20.5]} 25.
g4 {[%clk 0:01:06]} 1-0

[Event "Late-Titled-Tuesday-Blitz-May-14-2024"]
[Site "Chess.com"]
[Date "2024.05.14"]
[Round "4"]
[White "picturesquecheck"]
[Black "juancruzarias"]
[Result "1-0"]
[WhiteElo "2474"]
[BlackElo "2655"]
[TimeControl "180+1"]
[EndTime "14:36:56 PDT"]
[Termination "picturesquecheck won by resignation"]

1. e4 {[%clk 0:03:00.9]} 1... e6 {[%clk 0:02:57.6]} 2. d4 {[%clk 0:03:00.5]}
2... d5 {[%clk 0:02:58.2]} 3. Bd3 {[%clk 0:02:59.7]} 3... c5 {[%clk 0:02:58.1]}
4. exd5 {[%clk 0:02:58.2]} 4... exd5 {[%clk 0:02:59]} 5. Nf3 {[%clk 0:02:58.2]}
5... c4 {[%clk 0:02:59.2]} 6. Be2 {[%clk 0:02:58.1]} 6... Bd6 {[%clk 0:02:58.6]}
7. O-O {[%clk 0:02:59]} 7... Nf6 {[%clk 0:02:56.6]} 8. b3 {[%clk 0:02:58.8]}
8... cxb3 {[%clk 0:02:56.4]} 9. axb3 {[%clk 0:02:59.7]} 9... O-O {[%clk
0:02:55]} 10. c4 {[%clk 0:03:00.2]} 10... Bg4 {[%clk 0:02:52]} 11. Nc3 {[%clk
0:03:00.1]} 11... Nc6 {[%clk 0:02:49.7]} 12. Bg5 {[%clk 0:02:58.5]} 12... dxc4
{[%clk 0:02:46.5]} 13. bxc4 {[%clk 0:02:58.1]} 13... Bxf3 {[%clk 0:02:31.7]} 14.
Bxf3 {[%clk 0:02:57.9]} 14... Nxd4 {[%clk 0:02:32]} 15. Bxb7 {[%clk 0:02:53.3]}
15... Rb8 {[%clk 0:02:31.5]} 16. Bd5 {[%clk 0:02:53.4]} 16... h6 {[%clk
0:02:18.1]} 17. Bxf6 {[%clk 0:02:51.2]} 17... Qxf6 {[%clk 0:02:13.5]} 18. Ne4
{[%clk 0:02:51.2]} 18... Qe5 {[%clk 0:02:00.1]} 19. Nxd6 {[%clk 0:02:50.2]}
19... Ne2+ {[%clk 0:01:59.8]} 20. Kh1 {[%clk 0:02:48.4]} 20... Nc3 {[%clk
0:01:52.9]} 21. Qf3 {[%clk 0:02:09.8]} 21... Rbd8 {[%clk 0:01:31.5]} 22. Nxf7
{[%clk 0:02:03]} 22... Rxf7 {[%clk 0:01:13.3]} 23. Qxf7+ {[%clk 0:01:59.1]}
23... Kh8 {[%clk 0:01:13.6]} 24. Rxa7 {[%clk 0:01:56.3]} 24... Qd4 {[%clk
0:01:06.6]} 25. h3 {[%clk 0:01:44.8]} 25... Ne2 {[%clk 0:01:03.1]} 26. Qe7
{[%clk 0:01:36.5]} 26... Rb8 {[%clk 0:01:02]} 27. Rb7 {[%clk 0:01:30.7]} 27...
Rc8 {[%clk 0:01:00.7]} 28. Qxe2 {[%clk 0:01:30]} 1-0

[Event "Late-Titled-Tuesday-Blitz-May-14-2024"]
[Site "Chess.com"]
[Date "2024.05.14"]
[Round "4"]
[White "ozates"]
[Black "Flaccidmoves"]
[Result "1-0"]
[WhiteElo "2662"]
[BlackElo "2439"]
[TimeControl "180+1"]
[EndTime "14:37:00 PDT"]
[Termination "ozates won by checkmate"]

1. c4 {[%clk 0:03:00.9]} 1... Nc6 {[%clk 0:02:59.9]} 2. Nf3 {[%clk 0:02:59.1]}
2... e5 {[%clk 0:02:57.5]} 3. Nc3 {[%clk 0:02:59]} 3... Bc5 {[%clk 0:02:54.9]}
4. e3 {[%clk 0:02:52.7]} 4... d6 {[%clk 0:02:47.2]} 5. d4 {[%clk 0:02:52.6]}
5... exd4 {[%clk 0:02:45.8]} 6. exd4 {[%clk 0:02:53.5]} 6... Bb4 {[%clk
0:02:44.4]} 7. Bd3 {[%clk 0:02:51.6]} 7... Nf6 {[%clk 0:02:34.3]} 8. d5 {[%clk
0:02:50.9]} 8... Bxc3+ {[%clk 0:02:33.2]} 9. bxc3 {[%clk 0:02:51.5]} 9... Ne7
{[%clk 0:02:25.4]} 10. O-O {[%clk 0:02:48.8]} 10... Bf5 {[%clk 0:02:21.2]} 11.
Bxf5 {[%clk 0:02:42.8]} 11... Nxf5 {[%clk 0:02:21.1]} 12. Re1+ {[%clk
0:02:43.7]} 12... Ne7 {[%clk 0:02:20.3]} 13. Qe2 {[%clk 0:02:40]} 13... Kf8
{[%clk 0:02:16.2]} 14. Rb1 {[%clk 0:02:34.4]} 14... b6 {[%clk 0:02:14.7]} 15.
Nd4 {[%clk 0:02:33.8]} 15... Qd7 {[%clk 0:02:06.1]} 16. Bg5 {[%clk 0:02:31.1]}
16... Re8 {[%clk 0:01:54.4]} 17. Bxf6 {[%clk 0:02:21.5]} 17... gxf6 {[%clk
0:01:55.3]} 18. Qf3 {[%clk 0:02:21.2]} 18... f5 {[%clk 0:01:51.8]} 19. Re3
{[%clk 0:02:05]} 19... Ng6 {[%clk 0:01:34.4]} 20. Nxf5 {[%clk 0:01:55.7]} 20...
Rxe3 {[%clk 0:01:33.1]} 21. fxe3 {[%clk 0:01:49.6]} 21... h5 {[%clk 0:01:23.9]}
22. Rf1 {[%clk 0:01:47.4]} 22... Ne5 {[%clk 0:01:23]} 23. Qf4 {[%clk 0:01:47.1]}
23... Qd8 {[%clk 0:01:11.5]} 24. Nd4 {[%clk 0:01:43.7]} 24... Kg8 {[%clk
0:00:57.5]} 25. Qg3+ {[%clk 0:01:39.6]} 25... Kh7 {[%clk 0:00:51.4]} 26. Rf5
{[%clk 0:01:38.2]} 26... Ng6 {[%clk 0:00:43.6]} 27. Rxf7+ {[%clk 0:01:36.1]}
27... Kh6 {[%clk 0:00:43.1]} 28. Nf5# {[%clk 0:01:35.8]} 1-0

[Event "Late-Titled-Tuesday-Blitz-May-14-2024"]
[Site "Chess.com"]
[Date "2024.05.14"]
[Round "4"]
[White "MKlose11"]
[Black "ShahMatKanal"]
[Result "1-0"]
[WhiteElo "2626"]
[BlackElo "2396"]
[TimeControl "180+1"]
[EndTime "14:37:03 PDT"]
[Termination "MKlose11 won by resignation"]

1. e4 {[%clk 0:02:56.4]} 1... e5 {[%clk 0:02:59.8]} 2. Nf3 {[%clk 0:02:55.2]}
2... Nf6 {[%clk 0:02:59.9]} 3. d4 {[%clk 0:02:56.1]} 3... exd4 {[%clk
0:02:50.5]} 4. e5 {[%clk 0:02:53.1]} 4... Ne4 {[%clk 0:02:50.3]} 5. Bd3 {[%clk
0:02:50.8]} 5... d5 {[%clk 0:02:49.9]} 6. Nxd4 {[%clk 0:02:48]} 6... Nc5 {[%clk
0:02:39.7]} 7. O-O {[%clk 0:02:47]} 7... Nxd3 {[%clk 0:02:36.2]} 8. Qxd3 {[%clk
0:02:47.1]} 8... Nc6 {[%clk 0:02:19.5]} 9. Re1 {[%clk 0:02:42.6]} 9... Nxd4
{[%clk 0:02:16.9]} 10. Qxd4 {[%clk 0:02:42.9]} 10... Be6 {[%clk 0:02:11.7]} 11.
c3 {[%clk 0:02:34.8]} 11... Be7 {[%clk 0:02:08.9]} 12. Bf4 {[%clk 0:02:33.1]}
12... O-O {[%clk 0:02:07.3]} 13. Nd2 {[%clk 0:02:32.6]} 13... c5 {[%clk
0:02:03.1]} 14. Qa4 {[%clk 0:02:31.1]} 14... a6 {[%clk 0:01:57]} 15. Nf3 {[%clk
0:02:30.3]} 15... b5 {[%clk 0:01:56.1]} 16. Qc2 {[%clk 0:02:30.6]} 16... Qd7
{[%clk 0:01:40.1]} 17. h3 {[%clk 0:02:28.5]} 17... Rfd8 {[%clk 0:01:39.7]} 18.
Rad1 {[%clk 0:02:14.2]} 18... Qc6 {[%clk 0:01:39.5]} 19. Bg5 {[%clk 0:02:10.5]}
19... Ra7 {[%clk 0:01:35.6]} 20. Bxe7 {[%clk 0:02:08.1]} 20... Rxe7 {[%clk
0:01:36.5]} 21. Ng5 {[%clk 0:02:08.5]} 21... g6 {[%clk 0:01:29.3]} 22. Qd2
{[%clk 0:01:52.1]} 22... d4 {[%clk 0:01:17.3]} 23. Ne4 {[%clk 0:01:49.8]} 23...
Bd5 {[%clk 0:00:40.7]} 24. Nf6+ {[%clk 0:01:47.5]} 24... Kg7 {[%clk 0:00:40.4]}
25. Qg5 {[%clk 0:01:47.5]} 25... h6 {[%clk 0:00:36.5]} 26. Nh5+ {[%clk
0:01:45.5]} 26... Kf8 {[%clk 0:00:36.2]} 27. Qxh6+ {[%clk 0:01:45.5]} 27... Ke8
{[%clk 0:00:36]} 28. Nf6+ {[%clk 0:01:44.3]} 1-0

[Event "Late-Titled-Tuesday-Blitz-May-14-2024"]
[Site "Chess.com"]
[Date "2024.05.14"]
[Round "4"]
[White "Russian_berezka"]
[Black "Magicmaster17"]
[Result "0-1"]
[WhiteElo "2595"]
[BlackElo "2897"]
[TimeControl "180+1"]
[EndTime "14:37:05 PDT"]
[Termination "Magicmaster17 won by resignation"]

1. d4 {[%clk 0:03:00.9]} 1... Nf6 {[%clk 0:02:59.3]} 2. Bf4 {[%clk 0:03:01]}
2... c5 {[%clk 0:02:51.2]} 3. e3 {[%clk 0:02:59.9]} 3... d6 {[%clk 0:02:46.9]}
4. c3 {[%clk 0:02:59.1]} 4... Nbd7 {[%clk 0:02:44.4]} 5. Nf3 {[%clk 0:02:58.7]}
5... g6 {[%clk 0:02:44.5]} 6. h3 {[%clk 0:02:58.7]} 6... Bg7 {[%clk 0:02:44.4]}
7. Nbd2 {[%clk 0:02:59.3]} 7... b6 {[%clk 0:02:44.4]} 8. e4 {[%clk 0:02:57.3]}
8... Bb7 {[%clk 0:02:41]} 9. Bd3 {[%clk 0:02:57.7]} 9... cxd4 {[%clk 0:02:37.3]}
10. cxd4 {[%clk 0:02:57.9]} 10... e5 {[%clk 0:02:36.7]} 11. Be3 {[%clk
0:02:34.3]} 11... O-O {[%clk 0:02:34.9]} 12. d5 {[%clk 0:02:33.5]} 12... Nc5
{[%clk 0:02:30.4]} 13. Bc2 {[%clk 0:02:29.4]} 13... Ba6 {[%clk 0:02:30.3]} 14.
Bxc5 {[%clk 0:02:12.1]} 14... bxc5 {[%clk 0:02:31.2]} 15. Bb3 {[%clk 0:01:47.7]}
15... Qa5 {[%clk 0:02:28.4]} 16. Qc2 {[%clk 0:01:48.1]} 16... Rab8 {[%clk
0:02:22.2]} 17. Qc3 {[%clk 0:01:39]} 17... Rb4 {[%clk 0:02:21.3]} 18. a3 {[%clk
0:01:33.1]} 18... Nxe4 {[%clk 0:02:20.7]} 19. Nxe4 {[%clk 0:01:12.2]} 19...
Rxe4+ {[%clk 0:02:20.1]} 20. Kd2 {[%clk 0:01:12.9]} 20... Re2+ {[%clk
0:02:12.3]} 21. Kd1 {[%clk 0:01:12.3]} 21... Qxc3 {[%clk 0:02:07.1]} 22. bxc3
{[%clk 0:01:13.2]} 22... Rb8 {[%clk 0:02:06.6]} 23. Rb1 {[%clk 0:01:08.5]} 23...
Bd3 {[%clk 0:02:00.8]} 24. Nd2 {[%clk 0:00:55.8]} 24... Bh6 {[%clk 0:01:58.1]}
25. Rb2 {[%clk 0:00:49.1]} 25... Rxb3 {[%clk 0:01:50.3]} 26. Rxb3 {[%clk
0:00:42.9]} 26... Rxd2+ {[%clk 0:01:49.9]} 27. Ke1 {[%clk 0:00:43.5]} 27... Ra2
{[%clk 0:01:41]} 0-1

[Event "Late-Titled-Tuesday-Blitz-May-14-2024"]
[Site "Chess.com"]
[Date "2024.05.14"]
[Round "4"]
[White "AsaHoffmann"]
[Black "HandKnit"]
[Result "0-1"]
[WhiteElo "2311"]
[BlackElo "2497"]
[TimeControl "180+1"]
[EndTime "14:37:11 PDT"]
[Termination "HandKnit won by resignation"]

1. d4 {[%clk 0:02:53.1]} 1... Nf6 {[%clk 0:02:59.5]} 2. Bg5 {[%clk 0:02:52.3]}
2... e6 {[%clk 0:02:58]} 3. Nd2 {[%clk 0:02:51.5]} 3... c5 {[%clk 0:02:57.6]} 4.
e3 {[%clk 0:02:50.9]} 4... b6 {[%clk 0:02:56]} 5. Bd3 {[%clk 0:02:50.5]} 5...
Bb7 {[%clk 0:02:55.9]} 6. Ngf3 {[%clk 0:02:50.4]} 6... cxd4 {[%clk 0:02:53.6]}
7. exd4 {[%clk 0:02:50.2]} 7... Be7 {[%clk 0:02:52.3]} 8. c3 {[%clk 0:02:50]}
8... O-O {[%clk 0:02:52.4]} 9. O-O {[%clk 0:02:49.9]} 9... d6 {[%clk 0:02:52.8]}
10. Re1 {[%clk 0:02:49.9]} 10... Nbd7 {[%clk 0:02:53.2]} 11. Bh4 {[%clk
0:02:49.6]} 11... Re8 {[%clk 0:02:53]} 12. h3 {[%clk 0:02:49.5]} 12... a6 {[%clk
0:02:52.8]} 13. Bg3 {[%clk 0:02:49.5]} 13... b5 {[%clk 0:02:52.2]} 14. a4 {[%clk
0:02:48.9]} 14... Qb6 {[%clk 0:02:46.7]} 15. c4 {[%clk 0:02:45.1]} 15... bxc4
{[%clk 0:02:39.8]} 16. Nxc4 {[%clk 0:02:44.1]} 16... Qb4 {[%clk 0:02:39.8]} 17.
a5 {[%clk 0:02:33.2]} 17... Bd5 {[%clk 0:02:34.9]} 18. Ra4 {[%clk 0:02:29.2]}
18... Qb8 {[%clk 0:02:29.3]} 19. Ne3 {[%clk 0:02:23.9]} 19... Bc6 {[%clk
0:02:27]} 20. Rc4 {[%clk 0:02:20.4]} 20... Bb5 {[%clk 0:02:24.1]} 21. Rc2 {[%clk
0:02:18.8]} 21... Ba4 {[%clk 0:02:20.4]} 22. b3 {[%clk 0:02:10.8]} 22... Bxb3
{[%clk 0:02:13.8]} 23. Rb2 {[%clk 0:02:10.2]} 23... Bxd1 {[%clk 0:02:13.6]} 24.
Rxb8 {[%clk 0:02:09.3]} 24... Rexb8 {[%clk 0:02:11.8]} 25. Rxd1 {[%clk
0:02:08.9]} 25... Rb4 {[%clk 0:02:06.1]} 26. Nc2 {[%clk 0:02:04.2]} 26... Ra4
{[%clk 0:02:04.1]} 27. Rb1 {[%clk 0:02:03.4]} 27... Rxa5 {[%clk 0:02:00.8]} 28.
Rb7 {[%clk 0:02:01.8]} 28... Ra4 {[%clk 0:01:52.3]} 29. Nb4 {[%clk 0:02:00.8]}
29... a5 {[%clk 0:01:43.9]} 30. Nc6 {[%clk 0:01:59.1]} 30... Bf8 {[%clk
0:01:44.1]} 31. Bb5 {[%clk 0:01:56.8]} 31... Ra1+ {[%clk 0:01:42.9]} 32. Kh2
{[%clk 0:01:56.4]} 32... Rb1 {[%clk 0:01:41.5]} 33. d5 {[%clk 0:01:46]} 33...
Nxd5 {[%clk 0:01:36]} 34. Nfd4 {[%clk 0:01:44.7]} 34... Nc5 {[%clk 0:01:33.2]}
35. Ra7 {[%clk 0:01:32.9]} 35... Rxa7 {[%clk 0:01:33.3]} 36. Nxa7 {[%clk
0:01:32.5]} 36... a4 {[%clk 0:01:33.9]} 37. Nc8 {[%clk 0:01:28]} 37... a3 {[%clk
0:01:31.9]} 38. Nxd6 {[%clk 0:01:27.3]} 38... a2 {[%clk 0:01:29.6]} 39. Be8
{[%clk 0:01:21.6]} 39... Bxd6 {[%clk 0:01:27.1]} 40. Bxd6 {[%clk 0:01:21]} 40...
a1=Q {[%clk 0:01:26.6]} 41. Nf3 {[%clk 0:01:20]} 41... Rh1+ {[%clk 0:01:23.3]}
42. Kg3 {[%clk 0:01:19.7]} 42... Ne4+ {[%clk 0:01:23.9]} 0-1